Workbook

Sheet CZK
S1: Hilfsspalten
B2: Report on explanations of the use of resources M01-M18
B3: please fill in the yellow fields!
B4: Personnel costs (GA Article 6.2 A)
B6: Use of PMs | F6: Use of COSTS
C7: actual spent PMs (M01-M18) | I7: Amount (in €) | L7: Associated WP(s)
B8: WP1 (M01-M36) | C8: =417/160 -> 2.60625 | F8: Personnel direct costs | I8: 523801.48 | L8: WP1
B9: WP2 (M01-M36) | C9: =317/160 -> 1.98125 | F9: Personnel direct costs | I9: 246062 | L9: WP2
B10: WP3 (M01-M36) | C10: =153/160 -> 0.95625 | F10: Personnel direct costs | I10: 195409.99 | L10: WP3
B11: WP4 (M01-M36) | C11: 0 | F11: Personnel direct costs | I11: 0 | L11: WP4
B12: WP5 (M01-M36) | C12: 0 | F12: Personnel direct costs | I12: 0 | L12: WP5
B13: WP6 (M01-M36) | C13: =1848/160 -> 11.55 | F13: Personnel direct costs | I13: 1556193.92 | L13: WP6
B14: WP7 (M01-M36) | C14: 0 | F14: Personnel direct costs | I14: 0 | L14: WP7
B15: WP8 (M01-M36) | C15: 0 | F15: Personnel direct costs | I15: 0 | L15: WP8
B16: WP9 (M01-M36) | C16: =2269.84/160 -> 14.1865 | F16: Personnel direct costs | I16: 1388190.58 | L16: WP9
B17: WP10 (M01-M36) | C17: 0 | F17: Personnel direct costs | I17: 0 | L17: WP10
B18: WP11 (M01-M36) | C18: 0 | F18: Personnel direct costs | I18: 0 | L18: WP11
B19: WP12 (M01-M36) | C19: =182/160 -> 1.1375 | F19: Personnel direct costs | I19: 126046.62 | L19: WP12
B20: WP13 (M01-M36) | C20: =128/160 -> 0.8 | F20: Personnel direct costs | I20: 101241.15 | L20: WP13
B21: WP14 (MXX - MXX) | C21: 0 | F21: Personnel direct costs | I21: 0
B22: TOTAL PMs | C22: =SUM(C8:D21) -> 33.21775 | F22: TOTAL personnel direct costs | I22: =SUM(I8:K21) -> 4136945.74
B24: Other direct costs (GA Article 6.2 D) | S24: choose among cost categories
S25: Other direct costs - TRAVEL
C26: Amount (in €) | F26: Associated WP(s) | I26: Explanation (if threshold equals or greater than 15%) | N26: Example | O26: Amount | P26: WP | Q26: Explanation is only needed if threshold (15%) exceeded! | S26: Other direct costs - EQUIPMENT
B27: Other direct costs - TRAVEL | C27: 69442.75 | F27: WP13 | I27: Project review by EC and project meeting SPARTA days in Brussels, February 2020, 3 person | N27: Other direct costs - TRAVEL | O27: € 1.500,- | P27: WP3 | Q27: technical Meeting, February 2019, Paris, 2 persons | S27: Other direct costs - OTHER GOODS and SERVICES
B28: Other direct costs - TRAVEL | C28: 52547.8 | F28: WP6, WP9 | I28: WP6 and WP9 Kickoff meeting in Genova, April 2019, 4 persons | N28: Other direct costs - EQUIPMENT | O28: € 2.000,- | P28: WP4 | Q28: software as foreseen in Annex I (DoA) page XX
B29: Other direct costs - TRAVEL | C29: 51818 | F29: WP13 | I29: Project meeting SPARTA Days in Rome, September 2019, 4 person | N29: Other direct costs - OTHER GOODS & SERVICES | O29: € 120,- | P29: WP2 | Q29: books, research literature
B30: Other direct costs - TRAVEL | C30: 28921.6 | F30: WP13 | I30: Project Kick-off meeting in Paris, France, February 2019, 2 person
B31: Other direct costs - TRAVEL | C31: 14783 | F31: WP6 | I31: Project meeting for WP6 in Lucca, December 2019, 2 persons
B32: Other direct costs - TRAVEL | C32: 13048.02 | F32: WP6 | I32: Active participation and paper presentation at conference NSS 2019 in Sapporo, December 2019, 2 person partially
B33: Other direct costs - TRAVEL | C33: 9159.58 | F33: WP13 | I33: Project meeting with coordinator in France, January 2020, 1 person
B34: Other direct costs - TRAVEL | C34: 5381.49 | F34: WP6 | I34: Active participation and paper presentation at conference IFIP SEC 2019 in Lisbon, June 2019, 1 person
B35: Other direct costs - TRAVEL | C35: 5218.9 | F35: WP6 | I35: Active participation and paper presentation at conference ARES 2019 in Canterbury, August 2019, 1 person
B36: Other direct costs - OTHER GOODS and SERVICES | C36: 39603.3 | F36: WP9 | I36: Hardware (virtualisation server) for cyber security training lab as foreseen in Annex I (DoA) page 69
B37: Other direct costs - OTHER GOODS and SERVICES | C37: 334533.19 | F37: WP9 | I37: Hardware for cyber security training lab as foreseen in Annex I (DoA) page 69
B38: choose among cost categories | C38: 0 | F38: <fill in> | I38: <fill in if threshold equals or greater than 15%>
B39: choose among cost categories | C39: 0 | F39: <fill in> | I39: <fill in if threshold equals or greater than 15%>
B40: choose among cost categories | C40: 0 | F40: <fill in> | I40: <fill in>
B41: choose among cost categories | C41: 0 | F41: <fill in> | I41: <fill in>
B42: choose among cost categories | C42: 0 | F42: <fill in> | I42: <fill in> | S42: Other direct costs - EQUIPMENT
B43: choose among cost categories | C43: 0 | F43: <fill in> | I43: <fill in> | S43: Other direct costs - OTHER GOODS and SERVICES
B44: choose among cost categories | C44: 0 | F44: <fill in> | I44: <fill in>
B45: choose among cost categories | C45: 0 | F45: <fill in> | I45: <fill in>
B46: choose among cost categories | C46: 0 | F46: <fill in> | I46: <fill in> | S46: Other direct costs - OTHER GOODS & SERVICES
B47: choose among cost categories | C47: 0 | F47: <fill in> | I47: <fill in>
B48: choose among cost categories | C48: 0 | F48: <fill in> | I48: <fill in>
B49: choose among cost categories | C49: 0 | F49: <fill in> | I49: <fill in>
B50: choose among cost categories | C50: 0 | F50: <fill in> | I50: <fill in>
B51: choose among cost categories | C51: 0 | F51: <fill in> | I51: <fill in>
B52: choose among cost categories | C52: 0 | F52: <fill in> | I52: <fill in>
B53: choose among cost categories | C53: 0 | F53: <fill in> | I53: <fill in>
B54: choose among cost categories | C54: 0 | F54: <fill in> | I54: <fill in>
B55: choose among cost categories | C55: 0 | F55: <fill in> | I55: <fill in>
B56: choose among cost categories | C56: 0 | F56: <fill in> | I56: <fill in>
B57: choose among cost categories | C57: 0 | F57: <fill in> | I57: <fill in>
B58: choose among cost categories | C58: 0 | F58: <fill in> | I58: <fill in>
B59: choose among cost categories | C59: 0 | F59: <fill in> | I59: <fill in>
B60: choose among cost categories | C60: 0 | F60: <fill in> | I60: <fill in>
B61: choose among cost categories | C61: 0 | F61: <fill in> | I61: <fill in>
B62: TOTAL other direct costs | C62: =SUM(C27:E61) -> 624457.63
N63: If costs declared under "other direct costs" are equal or less than 15% of claimed personnel costs for the beneficiary in each reporting period, no need to give any detail. If costs declared under "other direct costs" are higher than 15% of claimed personnel costs for the beneficiary in each reporting period, major direct costs items need to be recorded. The record items must be up to the levl that the remaining costs are below 15% of personnel costs, starting from the cost items of highest value in terms of cost amount. If costs were foressen in Annex I no further explanation is needed. If costs were not foreseen in Annex I, further explanations are needed.
B64: Share of other direct costs compared to personnel costs (Threshold 15%) | D64: sum of personnel costs | G64: sum of other direct costs | J64: threshold (%)
D65: =I22 -> 4136945.74 | G65: =C62 -> 624457.63 | J65: =G65/D65 -> 0.1509465362 | S65: 0.15
B68: Direct costs of subcontracting (GA Article 13)
B70: Description | D70: Foreseen in Annex I (yes/no) | F70: Explanations (if not foreseen in Annex I) | L70: Amount (in €)
B71: <fill in> | F71: <fill in> | L71: 0
B72: <fill in> | F72: <fill in> | L72: 0
B73: <fill in> | F73: <fill in> | L73: 0
B74: <fill in> | F74: <fill in> | L74: 0
B75: <fill in> | F75: <fill in> | L75: 0
B76: TOTAL direct costs of subcontracting | D76: =SUM(L71:L75) -> 0

Sheet Euro
S1: Hilfsspalten
B2: Report on explanations of the use of resources M01-M18
B3: please fill in the yellow fields!
B4: Personnel costs (GA Article 6.2 A)
B6: Use of PMs | F6: Use of COSTS
C7: actual spent PMs (M01-M18) | I7: Amount (in €) | L7: Associated WP(s)
B8: WP1 (M01-M36) | C8: =CZK!C8:D8 -> 2.60625 | F8: Personnel direct costs | I8: =(CZK!I8:K8)/25.941 -> 20192.03115 | L8: WP1
B9: WP2 (M01-M36) | C9: =CZK!C9:D9 -> 1.98125 | F9: Personnel direct costs | I9: =(CZK!I9:K9)/25.941 -> 9485.447747 | L9: WP2
B10: WP3 (M01-M36) | C10: =CZK!C10:D10 -> 0.95625 | F10: Personnel direct costs | I10: =(CZK!I10:K10)/25.941 -> 7532.86265 | L10: WP3
B11: WP4 (M01-M36) | C11: =CZK!C11:D11 -> 0 | F11: Personnel direct costs | I11: =(CZK!I11:K11)/25.941 -> 0 | L11: WP4
B12: WP5 (M01-M36) | C12: =CZK!C12:D12 -> 0 | F12: Personnel direct costs | I12: =(CZK!I12:K12)/25.941 -> 0 | L12: WP5
B13: WP6 (M01-M36) | C13: =CZK!C13:D13 -> 11.55 | F13: Personnel direct costs | I13: =(CZK!I13:K13)/25.941 -> 59989.74288 | L13: WP6
B14: WP7 (M01-M36) | C14: =CZK!C14:D14 -> 0 | F14: Personnel direct costs | I14: =(CZK!I14:K14)/25.941 -> 0 | L14: WP7
B15: WP8 (M01-M36) | C15: =CZK!C15:D15 -> 0 | F15: Personnel direct costs | I15: =(CZK!I15:K15)/25.941 -> 0 | L15: WP8
B16: WP9 (M01-M36) | C16: =CZK!C16:D16 -> 14.1865 | F16: Personnel direct costs | I16: =(CZK!I16:K16)/25.941 -> 53513.37959 | L16: WP9
B17: WP10 (M01-M36) | C17: =CZK!C17:D17 -> 0 | F17: Personnel direct costs | I17: =(CZK!I17:K17)/25.941 -> 0 | L17: WP10
B18: WP11 (M01-M36) | C18: =CZK!C18:D18 -> 0 | F18: Personnel direct costs | I18: =(CZK!I18:K18)/25.941 -> 0 | L18: WP11
B19: WP12 (M01-M36) | C19: =CZK!C19:D19 -> 1.1375 | F19: Personnel direct costs | I19: =(CZK!I19:K19)/25.941 -> 4858.973054 | L19: WP12
B20: WP13 (M01-M36) | C20: =CZK!C20:D20 -> 0.8 | F20: Personnel direct costs | I20: =(CZK!I20:K20)/25.941 -> 3902.746617 | L20: WP13
B21: WP14 (MXX - MXX) | C21: =CZK!C21:D21 -> 0 | F21: Personnel direct costs | I21: 0
B22: TOTAL PMs | C22: =SUM(C8:D21) -> 33.21775 | F22: TOTAL personnel direct costs | I22: =SUM(I8:K21) -> 159475.1837
B24: Other direct costs (GA Article 6.2 D) | S24: choose among cost categories
S25: Other direct costs - TRAVEL
C26: Amount (in €) | F26: Associated WP(s) | I26: Explanation (if threshold equals or greater than 15%) | N26: Example | O26: Amount | P26: WP | Q26: Explanation is only needed if threshold (15%) exceeded! | S26: Other direct costs - EQUIPMENT
B27: Other direct costs - TRAVEL | C27: =(CZK!C27:E27)/25.941 -> 2676.949616 | F27: WP13 | I27: Project review by EC and project meeting SPARTA days in Brussels, February 2020, 3 person | N27: Other direct costs - TRAVEL | O27: € 1.500,- | P27: WP3 | Q27: technical Meeting, February 2019, Paris, 2 persons | S27: Other direct costs - OTHER GOODS and SERVICES
B28: Other direct costs - TRAVEL | C28: =(CZK!C28:E28)/25.941 -> 2025.665934 | F28: WP6, WP9 | I28: WP6 and WP9 Kickoff meeting in Genova, April 2019, 4 persons | N28: Other direct costs - EQUIPMENT | O28: € 2.000,- | P28: WP4 | Q28: software as foreseen in Annex I (DoA) page XX
B29: Other direct costs - TRAVEL | C29: =(CZK!C29:E29)/25.941 -> 1997.532863 | F29: WP13 | I29: Project meeting SPARTA Days in Rome, September 2019, 4 person | N29: Other direct costs - OTHER GOODS & SERVICES | O29: € 120,- | P29: WP2 | Q29: books, research literature
B30: Other direct costs - TRAVEL | C30: =(CZK!C30:E30)/25.941 -> 1114.899194 | F30: WP13 | I30: Project Kick-off meeting in Paris, France, February 2019, 2 person
B31: Other direct costs - TRAVEL | C31: =(CZK!C31:E31)/25.941 -> 569.8700898 | F31: WP6 | I31: Project meeting for WP6 in Lucca, December 2019, 2 persons
B32: Other direct costs - TRAVEL | C32: =(CZK!C32:E32)/25.941 -> 502.9883196 | F32: WP6 | I32: Active participation and paper presentation at conference NSS 2019 in Sapporo, December 2019, 2 person partially
B33: Other direct costs - TRAVEL | C33: =(CZK!C33:E33)/25.941 -> 353.0927875 | F33: WP13 | I33: Project meeting with coordinator in France, January 2020, 1 person
B34: Other direct costs - TRAVEL | C34: =(CZK!C34:E34)/25.941 -> 207.4511391 | F34: WP6 | I34: Active participation and paper presentation at conference IFIP SEC 2019 in Lisbon, June 2019, 1 person
B35: Other direct costs - TRAVEL | C35: =(CZK!C35:E35)/25.941 -> 201.1834548 | F35: WP6 | I35: Active participation and paper presentation at conference ARES 2019 in Canterbury, August 2019, 1 person
B36: Other direct costs - OTHER GOODS and SERVICES | C36: =(CZK!C36:E36)/25.941 -> 1526.668209 | F36: WP9 | I36: Hardware (virtualisation server) for cyber security training lab as foreseen in Annex I (DoA) page 69
B37: Other direct costs - OTHER GOODS and SERVICES | C37: =(CZK!C37:E37)/25.941 -> 12895.92498 | F37: WP9 | I37: Hardware for cyber security training lab as foreseen in Annex I (DoA) page 69
B38: choose among cost categories | C38: =(CZK!C38:E38)/25.941 -> 0 | F38: <fill in> | I38: <fill in if threshold equals or greater than 15%>
B39: choose among cost categories | C39: =(CZK!C39:E39)/25.941 -> 0 | F39: <fill in> | I39: <fill in if threshold equals or greater than 15%>
B40: choose among cost categories | C40: 0 | F40: <fill in> | I40: <fill in>
B41: choose among cost categories | C41: 0 | F41: <fill in> | I41: <fill in>
B42: choose among cost categories | C42: 0 | F42: <fill in> | I42: <fill in> | S42: Other direct costs - EQUIPMENT
B43: choose among cost categories | C43: 0 | F43: <fill in> | I43: <fill in> | S43: Other direct costs - OTHER GOODS and SERVICES
B44: choose among cost categories | C44: 0 | F44: <fill in> | I44: <fill in>
B45: choose among cost categories | C45: 0 | F45: <fill in> | I45: <fill in>
B46: choose among cost categories | C46: 0 | F46: <fill in> | I46: <fill in> | S46: Other direct costs - OTHER GOODS & SERVICES
B47: choose among cost categories | C47: 0 | F47: <fill in> | I47: <fill in>
B48: choose among cost categories | C48: 0 | F48: <fill in> | I48: <fill in>
B49: choose among cost categories | C49: 0 | F49: <fill in> | I49: <fill in>
B50: choose among cost categories | C50: 0 | F50: <fill in> | I50: <fill in>
B51: choose among cost categories | C51: 0 | F51: <fill in> | I51: <fill in>
B52: choose among cost categories | C52: 0 | F52: <fill in> | I52: <fill in>
B53: choose among cost categories | C53: 0 | F53: <fill in> | I53: <fill in>
B54: choose among cost categories | C54: 0 | F54: <fill in> | I54: <fill in>
B55: choose among cost categories | C55: 0 | F55: <fill in> | I55: <fill in>
B56: choose among cost categories | C56: 0 | F56: <fill in> | I56: <fill in>
B57: choose among cost categories | C57: 0 | F57: <fill in> | I57: <fill in>
B58: choose among cost categories | C58: 0 | F58: <fill in> | I58: <fill in>
B59: choose among cost categories | C59: 0 | F59: <fill in> | I59: <fill in>
B60: choose among cost categories | C60: 0 | F60: <fill in> | I60: <fill in>
B61: choose among cost categories | C61: 0 | F61: <fill in> | I61: <fill in>
B62: TOTAL other direct costs | C62: =SUM(C27:E61) -> 24072.22659
N63: If costs declared under "other direct costs" are equal or less than 15% of claimed personnel costs for the beneficiary in each reporting period, no need to give any detail. If costs declared under "other direct costs" are higher than 15% of claimed personnel costs for the beneficiary in each reporting period, major direct costs items need to be recorded. The record items must be up to the levl that the remaining costs are below 15% of personnel costs, starting from the cost items of highest value in terms of cost amount. If costs were foressen in Annex I no further explanation is needed. If costs were not foreseen in Annex I, further explanations are needed.
B64: Share of other direct costs compared to personnel costs (Threshold 15%) | D64: sum of personnel costs | G64: sum of other direct costs | J64: threshold (%)
D65: =I22 -> 159475.1837 | G65: =C62 -> 24072.22659 | J65: =G65/D65 -> 0.1509465362 | S65: 0.15
B68: Direct costs of subcontracting (GA Article 13)
B70: Description | D70: Foreseen in Annex I (yes/no) | F70: Explanations (if not foreseen in Annex I) | L70: Amount (in €)
B71: <fill in> | F71: <fill in> | L71: 0
B72: <fill in> | F72: <fill in> | L72: 0
B73: <fill in> | F73: <fill in> | L73: 0
B74: <fill in> | F74: <fill in> | L74: 0
B75: <fill in> | F75: <fill in> | L75: 0
B76: TOTAL direct costs of subcontracting | D76: =SUM(L71:L75) -> 0

Sheet Summary
B2: Summary Statement M01-M18
B4: this table will be completed automatically and summarizes the data requested in the participant portal
B6: Personnel Direct Costs | C6: =CZK!I22 -> 4136945.74
B7: Direct Costs of Subcontracting | C7: =CZK!D76 -> 0
B8: Other Direct Costs | C8: =CZK!C62:E62 -> 624457.63
B9: Indirect Costs (25%) | C9: =(C6+C8)*25% -> 1190350.843
B10: Total Eligible Costs | C10: =SUM(C6:C9) -> 5951754.213
B11: Maximum Funding Amount | C11: =C10 -> 5951754.213
B12: Requested Funding
